{"text_format":"1","workbook":"xlsx","n_sheets":1,"sheets":["Invoice"],"not_rendered":{"charts":0,"images":2,"macros":0,"external_links":0,"defined_names":14,"comments":0,"pivot_tables":0},"unopened":[],"bounds":{"document_bytes":16777216,"sheet_cells":100000,"rows_first":2000,"rows_last":500,"rows_between":2000,"halvings":0,"cell_chars":16384,"cell_head_chars":4096},"cells_cut":0,"cells_raw":0,"read":"whole","date_system":"1900"}

{"sheet":"Invoice","index":0,"n_rows":29,"n_cols":6,"rows_kept":29,"cut":false,"hidden":false,"merged":[[0,4,0,5],[10,1,10,2],[11,1,11,2],[7,3,8,4],[7,5,8,5],[5,1,5,2],[26,1,27,2],[25,1,25,2],[28,1,28,2],[0,1,0,2],[6,1,6,5],[7,1,7,2],[8,1,8,2],[9,1,9,2],[3,5,4,5],[3,4,4,4],[9,3,10,4],[9,5,10,5],[1,1,1,2],[2,1,2,2],[3,1,3,2],[4,1,4,2]]}
[null,null,null,null,"INVOICE"]
[null,"Street Address",null,null,"Date",{"$f":"TODAY()","v":"2017-09-09"}]
[null,"City, ST  ZIP Code",null,null,"Invoice #",1111]
[null,"Phone: (206) 555-1163",null,null,"For","PO # 123456"]
[null,"Fax: (206) 555-1164"]
[null,"someone@example.com"]
[null,"Bill To:"]
[null,"Customer Name",null,"Items over this amount qualify for an additional discount",null,100]
[null,"Company Name"]
[null,"Street Address",null,"% discount",null,0.1]
[null,"City, ST  ZIP Code"]
[null,"(206) 555-1163"]
[null,"Quantity","Description","Unit price","Amount","Discount applied"]
[null,1,"Item Number 1",2,{"$f":"Amount","v":2},{"$f":"Discount_applied","v":0}]
[null,1,"Item Number 2",2,{"$f":"Amount","v":2},{"$f":"Discount_applied","v":0}]
[null,1,"Item Number 3",2,{"$f":"Amount","v":2},{"$f":"Discount_applied","v":0}]
[null,null,null,null,{"$f":"Amount","v":0},{"$f":"Discount_applied","v":0}]
[null,null,null,null,{"$f":"Amount","v":0},{"$f":"Discount_applied","v":0}]
[null,null,null,null,{"$f":"Amount","v":0},{"$f":"Discount_applied","v":0}]
[null,null,null,null,{"$f":"Amount","v":0},{"$f":"Discount_applied","v":0}]
[null,null,null,null,{"$f":"Amount","v":0},{"$f":"Discount_applied","v":0}]
[null,null,null,null,{"$f":"Amount","v":0},{"$f":"Discount_applied","v":0}]
[null,null,null,null,{"$f":"Amount","v":0},{"$f":"Discount_applied","v":0}]
[null,null,null,null,{"$f":"Amount","v":0},{"$f":"Discount_applied","v":0}]
[null,"Subtotal",null,null,{"$f":"SUBTOTAL(109,InvoiceDetails[Amount])","v":6}]
[null,"Make all checks payable to <Company name>.",null,"Credit ",1000]
[null,"If you have any questions concerning this invoice, contact <Name> at <phone or email>.\n",null,"Tax ",9.8000000000000004E-2]
[null,null,null,"Additional discount ",0.12]
[null,"Thank you for your business!",null,"Balance due ",{"$f":"Balance_due","v":-994.20255999999995}]